[Event "Rapid Tournament"]
[Site "Biel, Switzerland"]
[Date "2021.07.25"]
[Round "6.2"]
[White "Nihal, Sarin"]
[Black "Kamsky, Gata"]
[Result "1/2-1/2"]
[TimeControl "15min + 5 sec per move"]
[WhiteTitle "GM"]
[BlackTitle "GM"]
[WhiteFideId "25092340"]
[BlackFideId "2000024"]
[WhiteElo "2418"]
[BlackElo "2701"]

1. b3 {[%clk 00:15:07]} {[%emt 00:00:02]} d5 {[%clk 00:14:38]} {[%emt
00:00:31]} 2. Bb2 {[%clk 00:15:10]} {[%emt 00:00:02]} Bf5 {[%clk 00:14:38]}
{[%emt 00:00:05]} 3. d3 {[%clk 00:15:14]} {[%emt 00:00:02]} e6 {[%clk
00:14:40]} {[%emt 00:00:02]} 4. Nd2 {[%clk 00:15:18]} {[%emt 00:00:02]} Nf6
{[%clk 00:14:37]} {[%emt 00:00:07]} 5. g3 {[%clk 00:15:22]} {[%emt 00:00:02]}
a5 {[%clk 00:14:25]} {[%emt 00:00:17]} 6. a3 {[%clk 00:15:23]} {[%emt
00:00:04]} h6 {[%clk 00:14:25]} {[%emt 00:00:05]} 7. Bg2 {[%clk 00:15:26]}
{[%emt 00:00:02]} Bh7 {[%clk 00:14:27]} {[%emt 00:00:02]} 8. e4 {[%clk
00:15:29]} {[%emt 00:00:02]} c6 {[%clk 00:14:18]} {[%emt 00:00:14]} 9. Nh3
{[%clk 00:15:27]} {[%emt 00:00:07]} Be7 {[%clk 00:13:14]} {[%emt 00:01:09]} 10.
O-O {[%clk 00:15:30]} {[%emt 00:00:03]} Na6 {[%clk 00:13:06]} {[%emt 00:00:12]}
11. Nf4 {[%clk 00:15:18]} {[%emt 00:00:17]} O-O {[%clk 00:12:40]} {[%emt
00:00:31]} 12. Re1 {[%clk 00:15:21]} {[%emt 00:00:02]} b5 {[%clk 00:12:21]}
{[%emt 00:00:25]} 13. Qe2 {[%clk 00:14:11]} {[%emt 00:01:15]} Nc5 {[%clk
00:11:24]} {[%emt 00:01:00]} 14. Rad1 {[%clk 00:13:20]} {[%emt 00:00:58]} Rc8
{[%clk 00:09:46]} {[%emt 00:01:43]} 15. h4 {[%clk 00:12:58]} {[%emt 00:00:27]}
Re8 {[%clk 00:09:18]} {[%emt 00:00:33]} 16. e5 {[%clk 00:11:14]} {[%emt
00:01:49]} Nfd7 {[%clk 00:09:20]} {[%emt 00:00:03]} 17. d4 {[%clk 00:11:11]}
{[%emt 00:00:08]} Na6 {[%clk 00:09:23]} {[%emt 00:00:02]} 18. c4 {[%clk
00:11:15]} {[%emt 00:00:02]} Nc7 {[%clk 00:08:03]} {[%emt 00:01:24]} 19. c5
{[%clk 00:10:50]} {[%emt 00:00:31]} f6 {[%clk 00:06:42]} {[%emt 00:01:26]} 20.
Bh3 {[%clk 00:07:35]} {[%emt 00:03:20]} Bf8 {[%clk 00:05:38]} {[%emt 00:01:09]}
21. exf6 {[%clk 00:04:03]} {[%emt 00:03:37]} Qxf6 {[%clk 00:05:40]} {[%emt
00:00:02]} 22. Nf3 {[%clk 00:04:05]} {[%emt 00:00:03]} Be4 {[%clk 00:05:20]}
{[%emt 00:00:25]} 23. Ne5 {[%clk 00:03:30]} {[%emt 00:00:41]} Nxe5 {[%clk
00:05:13]} {[%emt 00:00:11]} 24. dxe5 {[%clk 00:03:34]} {[%emt 00:00:01]} Qf7
{[%clk 00:05:16]} {[%emt 00:00:02]} 25. Bd4 {[%clk 00:03:36]} {[%emt 00:00:04]}
Be7 {[%clk 00:04:38]} {[%emt 00:00:42]} 26. f3 {[%clk 00:02:31]} {[%emt
00:01:10]} Bh7 {[%clk 00:04:36]} {[%emt 00:00:07]} 27. Ng2 {[%clk 00:02:23]}
{[%emt 00:00:14]} Rf8 {[%clk 00:04:02]} {[%emt 00:00:39]} 28. Rf1 {[%clk
00:02:26]} {[%emt 00:00:02]} Ra8 {[%clk 00:03:55]} {[%emt 00:00:12]} 29. Kh2
{[%clk 00:02:23]} {[%emt 00:00:08]} Na6 {[%clk 00:02:52]} {[%emt 00:01:08]} 30.
Rc1 {[%clk 00:02:15]} {[%emt 00:00:14]} Nc7 {[%clk 00:02:56]} {[%emt 00:00:02]}
31. Qe3 {[%clk 00:02:06]} {[%emt 00:00:13]} Qg6 {[%clk 00:02:44]} {[%emt
00:00:17]} 32. Rcd1 {[%clk 00:01:36]} {[%emt 00:00:35]} b4 {[%clk 00:02:23]}
{[%emt 00:00:26]} 33. a4 {[%clk 00:01:39]} {[%emt 00:00:03]} Qf7 {[%clk
00:02:25]} {[%emt 00:00:03]} 34. Rd2 {[%clk 00:01:41]} {[%emt 00:00:02]} Kh8
{[%clk 00:02:11]} {[%emt 00:00:19]} 35. Rdf2 {[%clk 00:01:44]} {[%emt
00:00:02]} Qg6 {[%clk 00:02:09]} {[%emt 00:00:07]} 36. Nf4 {[%clk 00:01:47]}
{[%emt 00:00:03]} Qf7 {[%clk 00:02:08]} {[%emt 00:00:06]} 37. Ng2 {[%clk
00:01:50]} {[%emt 00:00:01]} Qg6 {[%clk 00:02:12]} {[%emt 00:00:02]} 38. Rd2
{[%clk 00:01:45]} {[%emt 00:00:10]} Qf7 {[%clk 00:02:11]} {[%emt 00:00:06]} 39.
g4 {[%clk 00:00:55]} {[%emt 00:00:55]} h5 {[%clk 00:01:54]} {[%emt 00:00:22]}
40. g5 {[%clk 00:00:46]} {[%emt 00:00:14]} Bf5 {[%clk 00:01:50]} {[%emt
00:00:09]} 41. f4 {[%clk 00:00:38]} {[%emt 00:00:14]} g6 {[%clk 00:01:47]}
{[%emt 00:00:08]} 42. Bxf5 {[%clk 00:00:37]} {[%emt 00:00:06]} Qxf5 {[%clk
00:01:50]} {[%emt 00:00:02]} 43. Qh3 {[%clk 00:00:31]} {[%emt 00:00:11]} Qxh3+
{[%clk 00:01:52]} {[%emt 00:00:03]} 44. Kxh3 {[%clk 00:00:35]} {[%emt
00:00:02]} Kg8 {[%clk 00:01:48]} {[%emt 00:00:09]} 45. Kg3 {[%clk 00:00:38]}
{[%emt 00:00:02]} Ne8 {[%clk 00:01:51]} {[%emt 00:00:03]} 46. Ne3 {[%clk
00:00:41]} {[%emt 00:00:02]} Ng7 {[%clk 00:01:54]} {[%emt 00:00:02]} 47. Rdf2
{[%clk 00:00:43]} {[%emt 00:00:03]} Kf7 {[%clk 00:01:57]} {[%emt 00:00:02]} 48.
Re2 {[%clk 00:00:45]} {[%emt 00:00:03]} Ke8 {[%clk 00:02:00]} {[%emt 00:00:02]}
49. Ref2 {[%clk 00:00:48]} {[%emt 00:00:01]} Kd7 {[%clk 00:02:04]} {[%emt
00:00:01]} 50. Re2 {[%clk 00:00:52]} Rh8 {[%emt 00:00:09]} 1/2-1/2

[Event "Rapid Tournament"]
[Site "Biel, Switzerland"]
[Date "2021.07.25"]
[Round "6.3"]
[White "Pichot, Alan"]
[Black "Lagarde, Maxime"]
[Result "0-1"]
[TimeControl "15min + 5 sec per move"]
[WhiteTitle "GM"]
[BlackTitle "GM"]
[WhiteFideId "110973"]
[BlackFideId "662399"]
[WhiteElo "2533"]
[BlackElo "2684"]

1. e4 {[%clk 00:15:09]} e6 {[%clk 00:15:09]} {[%emt 00:00:01]} 2. d4 {[%clk
00:15:12]} {[%emt 00:00:01]} d5 {[%clk 00:15:13]} 3. Nc3 {[%clk 00:15:16]}
{[%emt 00:00:01]} Bb4 {[%clk 00:15:17]} {[%emt 00:00:01]} 4. e5 {[%clk
00:15:17]} {[%emt 00:00:04]} Ne7 {[%clk 00:15:19]} {[%emt 00:00:03]} 5. a3
{[%clk 00:15:15]} {[%emt 00:00:08]} Bxc3+ {[%clk 00:15:22]} {[%emt 00:00:02]} 6.
bxc3 {[%clk 00:15:19]} {[%emt 00:00:01]} c5 {[%clk 00:15:26]} {[%emt 00:00:01]}
7. h4 {[%clk 00:14:38]} {[%emt 00:00:46]} Qc7 {[%clk 00:15:25]} {[%emt
00:00:06]} 8. h5 {[%clk 00:14:38]} {[%emt 00:00:04]} cxd4 {[%clk 00:11:52]}
{[%emt 00:03:38]} 9. cxd4 {[%clk 00:14:32]} {[%emt 00:00:11]} Qc3+ {[%clk
00:11:55]} {[%emt 00:00:01]} 10. Bd2 {[%clk 00:14:36]} {[%emt 00:00:01]} Qxd4
{[%clk 00:11:59]} {[%emt 00:00:01]} 11. Nf3 {[%clk 00:14:35]} {[%emt 00:00:06]}
Qe4+ {[%clk 00:12:03]} {[%emt 00:00:01]} 12. Be2 {[%clk 00:14:19]} {[%emt
00:00:21]} Nf5 {[%clk 00:12:05]} {[%emt 00:00:02]} 13. Rb1 {[%clk 00:09:41]}
{[%emt 00:04:43]} b6 {[%clk 00:09:47]} {[%emt 00:02:23]} 14. O-O {[%clk
00:02:16]} {[%emt 00:07:29]} Ba6 {[%clk 00:09:17]} {[%emt 00:00:35]} 15. Bd3
{[%clk 00:02:00]} {[%emt 00:00:21]} Qa4 {[%clk 00:07:33]} {[%emt 00:01:49]} 16.
Rb4 {[%clk 00:02:04]} {[%emt 00:00:01]} Qd7 {[%clk 00:07:27]} {[%emt 00:00:11]}
17. c4 {[%clk 00:01:03]} {[%emt 00:01:06]} Nc6 {[%clk 00:06:40]} {[%emt
00:00:52]} 18. Bxf5 {[%clk 00:01:04]} {[%emt 00:00:04]} exf5 {[%clk 00:05:20]}
{[%emt 00:01:26]} 19. h6 {[%clk 00:01:04]} {[%emt 00:00:04]} gxh6 {[%clk
00:04:29]} {[%emt 00:00:56]} 20. Re1 {[%clk 00:00:54]} {[%emt 00:00:16]} Bxc4
{[%clk 00:03:33]} {[%emt 00:01:00]} 21. Rb2 {[%clk 00:00:37]} {[%emt 00:00:22]}
Rg8 {[%clk 00:02:49]} {[%emt 00:00:49]} 22. Bf4 {[%clk 00:00:22]} {[%emt
00:00:20]} O-O-O {[%clk 00:02:06]} {[%emt 00:00:49]} 23. Qd2 {[%clk 00:00:26]}
Kb7 {[%clk 00:01:56]} {[%emt 00:00:15]} 24. a4 {[%clk 00:00:30]} d4 {[%clk
00:01:55]} {[%emt 00:00:06]} 25. Rc1 {[%clk 00:00:19]} {[%emt 00:00:16]} Qd5
{[%clk 00:01:43]} {[%emt 00:00:17]} 26. Ne1 {[%clk 00:00:10]} {[%emt 00:00:13]}
d3 {[%clk 00:01:41]} {[%emt 00:00:07]} 27. a5 {[%clk 00:00:13]} {[%emt
00:00:03]} b5 {[%clk 00:01:25]} {[%emt 00:00:21]} 28. Qc3 {[%clk 00:00:08]}
{[%emt 00:00:10]} Ka8 {[%clk 00:01:02]} {[%emt 00:00:27]} 29. Rd2 {[%clk
00:00:09]} {[%emt 00:00:04]} Nd4 {[%clk 00:01:02]} {[%emt 00:00:06]} 30. Be3
{[%clk 00:00:11]} {[%emt 00:00:03]} Ne2+ {[%clk 00:00:56]} {[%emt 00:00:10]} 31.
Rxe2 {[%clk 00:00:15]} {[%emt 00:00:01]} dxe2 {[%clk 00:01:00]} 32. Qb4 {[%clk
00:00:20]} Rxg2+ {[%clk 00:00:46]} {[%emt 00:00:19]} 33. Nxg2 {[%clk 00:00:23]}
{[%emt 00:00:01]} Rg8 {[%clk 00:00:50]} 0-1

[Event "Rapid Tournament"]
[Site "Biel, Switzerland"]
[Date "2021.07.25"]
[Round "6.4"]
[White "Gelfand, Boris"]
[Black "Alekseenko, Kirill"]
[Result "0-1"]
[TimeControl "15min + 5 sec per move"]
[WhiteTitle "GM"]
[BlackTitle "GM"]
[WhiteFideId "2805677"]
[BlackFideId "4135539"]
[WhiteElo "2702"]
[BlackElo "2661"]

1. d4 {[%clk 00:15:07]} {[%emt 00:00:02]} d5 {[%clk 00:15:09]} {[%emt
00:00:02]} 2. Nf3 {[%clk 00:15:12]} {[%emt 00:00:01]} Nf6 {[%clk 00:15:12]}
{[%emt 00:00:02]} 3. c4 {[%clk 00:15:16]} {[%emt 00:00:01]} dxc4 {[%clk
00:15:05]} {[%emt 00:00:12]} 4. e3 {[%clk 00:15:20]} Bg4 {[%clk 00:15:08]}
{[%emt 00:00:02]} 5. Bxc4 {[%clk 00:15:23]} {[%emt 00:00:02]} e6 {[%clk
00:15:12]} {[%emt 00:00:01]} 6. h3 {[%clk 00:15:20]} {[%emt 00:00:08]} Bh5
{[%clk 00:15:16]} {[%emt 00:00:01]} 7. Nc3 {[%clk 00:15:24]} {[%emt 00:00:01]}
Nc6 {[%clk 00:15:21]} 8. Bb5 {[%clk 00:15:21]} {[%emt 00:00:08]} Bb4 {[%clk
00:14:34]} {[%emt 00:00:51]} 9. Qa4 {[%clk 00:14:20]} {[%emt 00:01:07]} O-O
{[%clk 00:14:36]} {[%emt 00:00:02]} 10. Bxc6 {[%clk 00:14:20]} {[%emt
00:00:05]} Bxc3+ {[%clk 00:14:39]} {[%emt 00:00:02]} 11. bxc3 {[%clk 00:14:24]}
{[%emt 00:00:01]} bxc6 {[%clk 00:14:43]} {[%emt 00:00:01]} 12. Ne5 {[%clk
00:12:59]} {[%emt 00:01:30]} Nd7 {[%clk 00:12:31]} {[%emt 00:02:17]} 13. Nxc6
{[%clk 00:12:55]} {[%emt 00:00:09]} Qg5 {[%clk 00:12:27]} {[%emt 00:00:09]} 14.
g4 {[%clk 00:12:38]} {[%emt 00:00:21]} Bg6 {[%clk 00:11:53]} {[%emt 00:00:37]}
15. h4 {[%clk 00:09:01]} {[%emt 00:03:44]} Qf6 {[%clk 00:09:52]} {[%emt
00:02:07]} 16. f4 {[%clk 00:07:27]} {[%emt 00:01:39]} Rfe8 {[%clk 00:09:56]}
{[%emt 00:00:01]} 17. Ba3 {[%clk 00:05:52]} {[%emt 00:01:39]} Be4 {[%clk
00:08:53]} {[%emt 00:01:07]} 18. Rh2 {[%clk 00:05:19]} {[%emt 00:00:39]} Qg6
{[%clk 00:07:41]} {[%emt 00:01:18]} 19. g5 {[%clk 00:05:21]} {[%emt 00:00:03]}
Qh5 {[%clk 00:06:42]} {[%emt 00:01:04]} 20. Na5 {[%clk 00:04:12]} {[%emt
00:01:14]} Qg4 {[%clk 00:06:18]} {[%emt 00:00:29]} 21. Kd2 {[%clk 00:04:03]}
{[%emt 00:00:14]} Nb6 {[%clk 00:06:21]} {[%emt 00:00:02]} 22. Qd1 {[%clk
00:03:50]} {[%emt 00:00:18]} Qf5 {[%clk 00:06:24]} {[%emt 00:00:03]} 23. Bc5
{[%clk 00:03:54]} Rad8 {[%clk 00:06:15]} {[%emt 00:00:13]} 24. Bxb6 {[%clk
00:03:16]} {[%emt 00:00:43]} axb6 {[%clk 00:06:14]} {[%emt 00:00:07]} 25. Nc4
{[%clk 00:03:20]} {[%emt 00:00:01]} c5 {[%clk 00:05:53]} {[%emt 00:00:25]} 26.
Ne5 {[%clk 00:03:00]} {[%emt 00:00:25]} cxd4 {[%clk 00:05:52]} {[%emt
00:00:06]} 27. cxd4 {[%clk 00:03:03]} {[%emt 00:00:01]} Rxd4+ {[%clk 00:05:47]}
{[%emt 00:00:10]} 28. exd4 {[%clk 00:02:40]} {[%emt 00:00:28]} Qxf4+ {[%clk
00:05:51]} {[%emt 00:00:01]} 0-1

[ePGN "0.1;DGT LiveChess/2.2.5"]

[Event "Rapid Tournament"]
[Site "Biel, Switzerland"]
[Date "2021.07.25"]
[Round "7.1"]
[White "Studer, Noël"]
[Black "Gelfand, Boris"]
[Result "0-1"]
[TimeControl "15min + 5 sec per move"]
[WhiteTitle "GM"]
[BlackTitle "GM"]
[WhiteFideId "1319620"]
[BlackFideId "2805677"]
[WhiteElo "2431"]
[BlackElo "2702"]

1. d4 {[%clk 00:15:09]} {[%emt 00:00:01]} Nf6 {[%clk 00:15:10]} 2. c4 {[%clk
00:15:12]} e6 {[%clk 00:15:14]} 3. Nc3 {[%clk 00:15:16]} Bb4 {[%clk 00:15:18]}
{[%emt 00:00:01]} 4. e3 {[%clk 00:15:19]} O-O {[%clk 00:15:21]} {[%emt
00:00:03]} 5. Nf3 {[%clk 00:15:22]} {[%emt 00:00:01]} c5 {[%clk 00:15:23]}
{[%emt 00:00:04]} 6. Bd2 {[%clk 00:15:03]} {[%emt 00:00:24]} cxd4 {[%clk
00:15:09]} {[%emt 00:00:19]} 7. Nxd4 {[%clk 00:15:05]} {[%emt 00:00:03]} Nc6
{[%clk 00:14:42]} {[%emt 00:00:32]} 8. a3 {[%clk 00:15:00]} {[%emt 00:00:09]}
Be7 {[%clk 00:14:29]} {[%emt 00:00:19]} 9. Nf3 {[%clk 00:11:41]} {[%emt
00:03:24]} d5 {[%clk 00:14:18]} {[%emt 00:00:15]} 10. cxd5 {[%clk 00:11:45]}
{[%emt 00:00:02]} exd5 {[%clk 00:14:22]} {[%emt 00:00:01]} 11. Be2 {[%clk
00:11:48]} {[%emt 00:00:01]} Bd6 {[%clk 00:13:57]} {[%emt 00:00:31]} 12. Qc2
{[%clk 00:11:31]} {[%emt 00:00:22]} Re8 {[%clk 00:13:08]} {[%emt 00:00:54]} 13.
Nb5 {[%clk 00:11:14]} {[%emt 00:00:22]} Bb8 {[%clk 00:12:34]} {[%emt 00:00:38]}
14. Nbd4 {[%clk 00:10:53]} {[%emt 00:00:26]} Qd6 {[%clk 00:11:22]} {[%emt
00:01:18]} 15. Nxc6 {[%clk 00:10:37]} {[%emt 00:00:20]} bxc6 {[%clk 00:11:13]}
{[%emt 00:00:14]} 16. Bb4 {[%clk 00:10:41]} {[%emt 00:00:01]} Qc7 {[%clk
00:10:35]} {[%emt 00:00:43]} 17. Rc1 {[%clk 00:10:25]} {[%emt 00:00:21]} Bd7
{[%clk 00:10:08]} {[%emt 00:00:32]} 18. Nd4 {[%clk 00:06:13]} {[%emt 00:04:17]}
a5 {[%clk 00:10:10]} {[%emt 00:00:03]} 19. Bd2 {[%clk 00:06:17]} {[%emt
00:00:01]} Rc8 {[%clk 00:09:51]} {[%emt 00:00:24]} 20. Nf5 {[%clk 00:05:57]}
{[%emt 00:00:25]} Qe5 {[%clk 00:09:16]} {[%emt 00:00:40]} 21. g4 {[%clk
00:05:24]} {[%emt 00:00:39]} Ne4 {[%clk 00:08:46]} {[%emt 00:00:35]} 22. Ng3
{[%clk 00:03:33]} {[%emt 00:01:56]} Nxd2 {[%clk 00:08:40]} {[%emt 00:00:10]} 23.
Qxd2 {[%clk 00:03:35]} {[%emt 00:00:02]} Ba7 {[%clk 00:08:29]} {[%emt
00:00:17]} 24. O-O {[%clk 00:03:21]} {[%emt 00:00:19]} a4 {[%clk 00:06:56]}
{[%emt 00:01:38]} 25. Kg2 {[%clk 00:02:41]} {[%emt 00:00:45]} c5 {[%clk
00:05:39]} {[%emt 00:01:22]} 26. f4 {[%clk 00:02:21]} {[%emt 00:00:25]} Qe6
{[%clk 00:05:06]} {[%emt 00:00:38]} 27. Bf3 {[%clk 00:01:15]} {[%emt 00:01:11]}
Bc6 {[%clk 00:05:10]} 28. Nf5 {[%clk 00:01:17]} {[%emt 00:00:03]} Rab8 {[%clk
00:04:16]} {[%emt 00:01:00]} 29. Rc2 {[%clk 00:01:05]} {[%emt 00:00:17]} h5
{[%clk 00:03:12]} {[%emt 00:01:09]} 30. h3 {[%clk 00:00:55]} {[%emt 00:00:15]}
g6 {[%clk 00:02:58]} {[%emt 00:00:18]} 31. Nh6+ {[%clk 00:00:21]} {[%emt
00:00:40]} Kg7 {[%clk 00:03:03]} 32. g5 {[%clk 00:00:19]} {[%emt 00:00:06]} c4
{[%clk 00:02:16]} {[%emt 00:00:51]} 33. Re1 {[%clk 00:00:13]} {[%emt 00:00:11]}
Rb3 {[%clk 00:01:38]} {[%emt 00:00:44]} 34. Qa5 {[%clk 00:00:10]} {[%emt
00:00:08]} Bb6 {[%clk 00:01:27]} {[%emt 00:00:16]} 35. Qa6 {[%clk 00:00:14]}
Ra8 {[%clk 00:01:23]} {[%emt 00:00:09]} 0-1

[Event "Rapid Tournament"]
[Site "Biel, Switzerland"]
[Date "2021.07.25"]
[Round "7.2"]
[White "Alekseenko, Kirill"]
[Black "Pichot, Alan"]
[Result "1-0"]
[TimeControl "15min + 5 sec per move"]
[WhiteTitle "GM"]
[BlackTitle "GM"]
[WhiteFideId "4135539"]
[BlackFideId "110973"]
[WhiteElo "2661"]
[BlackElo "2533"]

1. d4 {[%clk 00:15:09]} Nf6 {[%clk 00:15:08]} {[%emt 00:00:02]} 2. Nc3 {[%clk
00:15:14]} d5 {[%clk 00:15:08]} {[%emt 00:00:05]} 3. Bf4 {[%clk 00:15:17]}
{[%emt 00:00:01]} e6 {[%clk 00:15:02]} {[%emt 00:00:12]} 4. Nb5 {[%clk
00:15:20]} {[%emt 00:00:02]} Na6 {[%clk 00:15:05]} {[%emt 00:00:01]} 5. e3
{[%clk 00:15:25]} {[%emt 00:00:01]} c6 {[%clk 00:15:03]} {[%emt 00:00:07]} 6.
Nc3 {[%clk 00:15:27]} {[%emt 00:00:02]} Be7 {[%clk 00:14:55]} {[%emt 00:00:13]}
7. h3 {[%clk 00:15:19]} {[%emt 00:00:12]} O-O {[%clk 00:14:57]} {[%emt
00:00:03]} 8. Nf3 {[%clk 00:15:23]} {[%emt 00:00:02]} b5 {[%clk 00:14:18]}
{[%emt 00:00:44]} 9. Bd3 {[%clk 00:13:24]} {[%emt 00:02:04]} b4 {[%clk
00:12:28]} {[%emt 00:01:56]} 10. Na4 {[%clk 00:13:10]} {[%emt 00:00:19]} Qa5
{[%clk 00:12:18]} {[%emt 00:00:15]} 11. b3 {[%clk 00:12:27]} {[%emt 00:00:48]}
c5 {[%clk 00:12:04]} {[%emt 00:00:18]} 12. Nxc5 {[%clk 00:11:58]} {[%emt
00:00:33]} Nxc5 {[%clk 00:11:26]} {[%emt 00:00:43]} 13. dxc5 {[%clk 00:12:02]}
{[%emt 00:00:01]} Qxc5 {[%clk 00:11:30]} {[%emt 00:00:01]} 14. O-O {[%clk
00:12:03]} {[%emt 00:00:04]} a5 {[%clk 00:11:28]} {[%emt 00:00:07]} 15. Be5
{[%clk 00:10:49]} {[%emt 00:01:19]} Ne4 {[%clk 00:10:43]} {[%emt 00:00:50]} 16.
Nd2 {[%clk 00:09:43]} {[%emt 00:01:10]} Nf6 {[%clk 00:07:55]} {[%emt 00:02:54]}
17. Qe2 {[%clk 00:09:06]} {[%emt 00:00:41]} Bb7 {[%clk 00:07:52]} {[%emt
00:00:09]} 18. Rfc1 {[%clk 00:08:51]} {[%emt 00:00:19]} Rfc8 {[%clk 00:07:35]}
{[%emt 00:00:23]} 19. c3 {[%clk 00:08:38]} {[%emt 00:00:19]} bxc3 {[%clk
00:07:39]} {[%emt 00:00:01]} 20. Rxc3 {[%clk 00:08:34]} {[%emt 00:00:08]} Qa3
{[%clk 00:07:29]} {[%emt 00:00:15]} 21. Nf3 {[%clk 00:08:31]} {[%emt 00:00:08]}
Ne4 {[%clk 00:06:15]} {[%emt 00:01:20]} 22. Bxe4 {[%clk 00:06:48]} {[%emt
00:01:48]} dxe4 {[%clk 00:06:17]} {[%emt 00:00:03]} 23. Nd2 {[%clk 00:06:52]}
f6 {[%clk 00:05:39]} {[%emt 00:00:44]} 24. Bd4 {[%clk 00:06:56]} Rxc3 {[%clk
00:04:30]} {[%emt 00:01:15]} 25. Bxc3 {[%clk 00:07:00]} Rc8 {[%clk 00:04:34]}
26. Nc4 {[%clk 00:07:01]} {[%emt 00:00:05]} Ba6 {[%clk 00:03:44]} {[%emt
00:00:55]} 27. Qg4 {[%clk 00:05:45]} {[%emt 00:01:21]} Bxc4 {[%clk 00:03:14]}
{[%emt 00:00:35]} 28. bxc4 {[%clk 00:05:48]} {[%emt 00:00:02]} Rc6 {[%clk
00:02:51]} {[%emt 00:00:28]} 29. Bd4 {[%clk 00:05:48]} {[%emt 00:00:04]} Qa4
{[%clk 00:01:24]} {[%emt 00:01:33]} 30. c5 {[%clk 00:04:29]} {[%emt 00:01:24]}
e5 {[%clk 00:00:44]} {[%emt 00:00:45]} 31. Qd7 {[%clk 00:03:17]} {[%emt
00:01:17]} Kf8 {[%clk 00:00:49]} 32. Rb1 {[%clk 00:02:55]} {[%emt 00:00:26]}
Qxa2 {[%clk 00:00:14]} {[%emt 00:00:40]} 33. Rb8+ {[%clk 00:02:55]} {[%emt
00:00:05]} Kf7 {[%clk 00:00:17]} {[%emt 00:00:01]} 34. Qe8+ {[%clk 00:02:59]}
{[%emt 00:00:01]} 1-0